bitfinex-derivatives/quotes_SOLF0:USTF0_20251209
["timestamp","ask_amount","ask_price","bid_price","bid_amount"]
[1765266403200,3.16,132.97,132.95,0.04950393]
[1765266409508,9.9294,132.97,132.95,0.04950393]
[1765266409910,3.4,132.96,132.95,0.04950393]
[1765266418320,3.4,132.96,132.87,309.84897785]
[1765266418321,3.4,132.93,132.88,6.7735]
[1765266418622,3.4,132.93,132.89,3.1]
[1765266419424,3.45752553,132.92,132.9,0.05283045]
[1765266419813,0.05752553,132.92,132.9,3.15283045]
[1765266423335,0.05752553,132.92,132.91,3.1]
[1765266423534,5.42827194,133.0,132.93,3.1]
[1765266423837,3.4,133.0,132.95,3.1]
[1765266424542,3.44782967,132.99,132.96,3.15460008]
[1765266428935,0.04782967,132.99,132.96,3.15460008]
[1765266429136,3.32,133.04,132.99,3.21]
[1765266429732,3.32,133.06,133.01,3.21]
[1765266430336,13.97822613,133.07,133.0,2.02827194]
[1765266430337,3.36883653,133.05,133.02,3.26136331]
[1765266433534,3.36883653,133.05,133.02,0.05136331]
[1765266433735,5.39710847,133.05,133.02,0.05136331]
[1765266433932,3.32,133.04,133.02,0.05136331]
[1765266438044,3.32,133.04,133.02,0.05136331]
[1765266442449,3.32,133.04,133.02,3.28136331]
[1765266443354,3.32,133.04,133.02,0.05136331]
[1765266456364,3.35,133.03,132.97,6.7688]
[1765266456564,65.94827194,133.04,132.96,3.23]
[1765266456565,3.35,133.0,132.96,3.23]
[1765266457369,0.05616023,132.99,132.97,0.0508153]
[1765266457571,3.35,132.98,132.97,0.0508153]
[1765266459158,3.40616023,132.99,132.97,3.2808153]
[1765266459471,0.05616023,132.99,132.97,3.2808153]
[1765266459971,3.40616023,132.99,132.97,3.2808153]
[1765266460972,0.05616023,132.99,132.97,3.2808153]
[1765266461173,3.40616023,132.99,132.97,3.2808153]
[1765266462766,3.40616023,132.99,132.97,0.0508153]
[1765266463767,5.37827194,132.98,132.97,0.0508153]
[1765266465274,0.05616023,132.99,132.97,3.2808153]
[1765266465275,3.40616023,132.99,132.97,3.2808153]
[1765266465772,3.40616023,132.99,132.97,0.0508153]
[1765266473881,3.40616023,132.99,132.97,3.3908153]
[1765266474274,3.40616023,132.99,132.97,0.0508153]
[1765266483382,3.40616023,132.99,132.98,3.34]
[1765266483587,0.05616023,132.99,132.98,3.34]
[1765266487385,0.05616023,132.99,132.97,6.8199153]
[1765266487386,3.30616023,132.99,132.97,6.8199153]
[1765266487589,3.30616023,132.99,132.97,0.0508153]
[1765266491599,3.25,132.98,132.97,0.0508153]
[1765266493999,10.0192,132.98,132.92,179.75642398]
[1765266494200,3.25,132.97,132.92,179.75642398]
[1765266494595,6.7699,132.96,132.92,179.75642398]
[1765266494792,3.25,132.95,132.91,3.07]
[1765266495304,3.29809555,132.94,132.92,0.04818099]
[1765266495506,3.29809555,132.94,132.92,3.11818099]
[1765266511718,3.11,132.99,132.94,3.07]
[1765266511920,3.11,133.01,132.96,3.07]
[1765266512325,8.21384855,133.04,132.97,3.07]
[1765266512520,3.11,133.03,132.97,3.07]
[1765266512721,3.15869384,133.01,132.99,3.12514473]
[1765266520625,3.15869384,133.01,132.99,0.05514473]
[1765266522434,9.92609384,133.01,132.99,0.05514473]
[1765266522635,3.11,133.0,132.99,0.05514473]
[1765266546452,3.13869384,133.01,132.99,3.39514473]
[1765266547260,3.13869384,133.01,132.99,0.05514473]
[1765266547966,5.11606074,133.0,132.99,0.05514473]
[1765266549263,3.09,133.0,132.99,0.05514473]
[1765266550957,3.09,132.99,132.95,67.3]
[1765266551161,3.09,132.99,132.96,3.34]
[1765266551870,3.09,132.98,132.94,10.1106]
[1765266552176,3.09,132.96,132.95,0.05301441]
[1765266552866,5.11606074,132.96,132.95,0.05301441]
[1765266554362,3.09,132.95,132.91,3.34]
[1765266555379,3.14377706,132.94,132.92,0.05041846]
[1765266555884,3.14377706,132.94,132.92,3.39041846]
[1765266556665,0.05377706,132.94,132.92,3.39041846]
[1765266556977,3.14377706,132.94,132.92,3.39041846]
[1765266557565,0.05377706,132.94,132.92,3.39041846]
[1765266557885,0.00377706,132.94,132.93,3.34]
[1765266565168,0.00377706,132.94,132.93,4.84]
[1765266568882,0.00377706,132.94,132.93,3.34]
[1765266569477,0.00377706,132.94,132.92,74.00201846]
[1765266569676,3.12377706,132.94,132.92,74.00201846]
[1765266570583,0.00377706,132.94,132.93,3.24]
[1765266578392,0.00377706,132.94,132.93,9.28819892]
[1765266583599,0.00377706,132.94,132.92,86.85897403]
[1765266583793,3.12,133.01,132.94,105.3223]
[1765266583993,3.12,133.01,132.96,2.02606074]
[1765266584204,3.12,133.01,132.97,3.24]
[1765266584893,3.17324919,133.0,132.98,0.05541204]
[1765266587501,3.12,132.99,132.98,0.05541204]
[1765266590309,5.14606074,132.99,132.98,0.05541204]
[1765266590606,3.2,132.98,132.93,9.941]
[1765266591599,0.05722498,132.97,132.94,0.04742073]
[1765266591917,3.2,132.96,132.94,0.04742073]
[1765266593298,3.2,132.96,132.94,3.21742073]
[1765266596007,3.2,132.96,132.94,0.04742073]
[1765266598804,3.2,132.96,132.94,3.21742073]
[1765266599212,3.25722498,132.97,132.95,3.17]
[1765266600414,0.05722498,132.97,132.96,3.17]
[1765266601712,3.2,133.0,132.97,3.17]
[1765266602801,3.24936156,133.0,132.97,3.21907513]
[1765266607714,3.24936156,133.0,132.98,3.3]
[1765266607916,3.40936156,133.0,132.98,3.3]
[1765266609618,3.40936156,133.0,132.98,10.0685]
[1765266614633,3.40936156,133.0,132.97,3.34907513]
[1765266617835,3.40936156,133.0,132.98,3.3]
[1765266622645,3.40936156,133.0,132.98,3.15]
[1765266625536,3.40936156,133.0,132.98,9.9185]
[1765266643453,0.04936156,133.0,132.99,3.15]
[1765266643656,3.27936156,133.0,132.99,3.15]
[1765266644548,3.27936156,133.0,132.97,0.04907513]
[1765266645054,3.23,132.98,132.97,0.04907513]
[1765266647658,8.71068343,132.98,132.97,0.04907513]
[1765266649358,14.08252497,132.98,132.97,0.04907513]
[1765266650453,8.71068343,132.98,132.97,0.04907513]
[1765266652251,8.71068343,132.98,132.97,3.39907513]
[1765266652447,8.71068343,132.98,132.97,0.04907513]
[1765266656164,3.23,132.98,132.97,0.04907513]
[1765266660665,3.24936156,133.0,132.97,3.39907513]
[1765266661463,3.24936156,133.0,132.97,10.16797513]
[1765266662062,0.04936156,133.0,132.98,10.1186]
[1765266662268,0.04936156,133.0,132.99,3.35]
[1765266663863,3.08,133.07,133.01,3.09]
[1765266664062,3.08,133.06,133.02,3.09]
[1765266664770,0.05470926,133.05,133.03,3.14255991]
[1765266666370,0.05470926,133.05,133.04,3.09]
[1765266671786,3.08,133.09,133.05,3.09]
[1765266672574,0.05370909,133.08,133.06,0.0481593]
[1765266672777,3.13370909,133.08,133.06,0.0481593]
[1765266673478,11.92155752,133.08,133.06,0.0481593]
[1765266673679,3.08,133.07,133.06,0.0481593]
[1765266675379,3.13370909,133.08,133.06,3.1381593]
[1765266675876,0.05370909,133.08,133.06,3.1381593]
[1765266677181,0.05370909,133.08,133.07,3.09]
[1765266687085,0.05370909,133.08,133.06,8.83640773]
[1765266687086,3.18370909,133.08,133.06,10.0825593]
[1765266687288,0.05370909,133.08,133.07,3.27]
[1765266713819,3.13,133.11,133.08,3.38]
[1765266714017,75.85464843,133.14,133.09,3.38]
[1765266714316,8.5035243,133.13,133.09,3.38]
[1765266714511,3.15,133.12,133.09,3.38]
[1765266714913,3.19818004,133.12,133.09,3.43420788]
[1765266725225,3.22,133.11,133.09,0.05420788]
[1765266725519,8.57968781,133.1,133.09,0.05420788]
[1765266726429,13.7769091,133.1,133.09,0.05420788]
[1765266729924,8.41722129,133.1,133.09,0.05420788]
[1765266730125,3.22,133.1,133.09,0.05420788]
[1765266737228,8.57577633,133.1,133.09,0.05420788]
[1765266737424,3.22,133.1,133.09,0.05420788]
[1765266738023,8.57577633,133.1,133.09,0.05420788]
[1765266738226,3.22,133.1,133.09,0.05420788]
[1765266741636,8.5753714,133.1,133.09,0.05420788]
[1765266743032,5.3553714,133.1,133.09,3.21420788]
[1765266743430,0.04818004,133.12,133.09,3.21420788]
[1765266745337,0.04818004,133.12,133.11,3.16]
[1765266760744,377.69011817,133.16,133.13,3.16]
[1765266761752,3.37622775,133.16,133.13,3.21119369]
[1765266763048,3.37622775,133.16,133.14,3.16]
[1765266763350,0.05622775,133.16,133.14,3.16]
[1765266764444,0.05622775,133.16,133.15,3.16]
[1765266769146,3.32,133.2,133.16,3.32]
[1765266770157,3.32,133.2,133.17,3.37283635]
[1765266772562,3.32,133.2,133.18,3.32]
[1765266775866,237.9556237,133.23,133.18,3.32]
[1765266776866,3.07,133.22,133.18,3.32]
[1765266777566,3.07,133.22,133.2,3.32]
[1765266777769,3.07,133.22,133.2,3.36893878]
[1765266778359,3.07,133.22,133.2,0.04893878]
[1765266780470,3.07,133.22,133.2,3.36893878]
[1765266781665,3.07,133.22,133.2,0.04893878]
[1765266783969,3.07,133.22,133.2,3.42893878]
[1765266785064,3.07,133.22,133.2,0.04893878]
[1765266786666,2.01985757,133.21,133.2,0.04893878]
[1765266786970,5.23985757,133.21,133.2,0.04893878]
[1765266788469,3.22,133.21,133.2,0.04893878]
[1765266795972,3.22,133.21,133.2,3.42893878]
[1765266797069,3.22,133.21,133.2,0.04893878]
[1765266830111,2.01985757,133.27,133.22,3.22]
[1765266830308,2.01985757,133.27,133.23,0.05557314]
[1765266830506,2.01985757,133.25,133.23,0.05557314]
[1765266831208,112.01506868,133.28,133.23,0.05557314]
[1765266831409,2.01985757,133.24,133.23,0.05557314]
[1765266832202,6.76985757,133.24,133.23,0.05557314]
[1765266833807,4.75,133.24,133.23,0.05557314]
[1765266834407,4.75,133.24,133.23,3.27557314]
[1765266834408,3.25,133.24,133.23,3.27557314]
[1765266834913,3.25,133.26,133.23,3.27557314]
[1765266838517,3.25,133.26,133.23,0.05557314]
[1765266839517,10.0039,133.26,133.23,0.05557314]
[1765266839818,3.25,133.25,133.23,0.05557314]
[1765266847027,3.09,133.24,133.18,3.21]
[1765266847329,3.09,133.19,133.15,3.21]
[1765266848127,3.138628,133.18,133.16,0.05393428]
[1765266849627,3.138628,133.18,133.16,0.00393428]
[1765266849926,3.138628,133.18,133.11,12.50751648]
[1765266850235,3.09,133.17,133.11,6.7618]
[1765266850422,3.09,133.16,133.09,12.50751648]
[1765266850618,3.09,133.16,133.09,3.21]
[1765266850824,3.09,133.13,133.11,0.0563721]
[1765266856434,3.09,133.13,133.11,3.2663721]
[1765266857233,3.09,133.13,133.11,0.0563721]
[1765266857731,0.05203174,133.14,133.11,3.2663721]
[1765266859040,3.26203174,133.14,133.11,3.2663721]
[1765266859542,3.26203174,133.14,133.12,3.26]
[1765266860042,0.05203174,133.14,133.12,3.26]
[1765266861743,0.05203174,133.14,133.12,10.0213]
[1765266861943,0.05203174,133.14,133.13,3.26]
[1765266863148,3.26203174,133.14,133.11,0.0563721]
[1765266863347,3.26203174,133.14,133.11,3.3163721]
[1765266863535,3.26203174,133.14,133.11,0.0563721]
[1765266864438,3.26203174,133.14,133.11,3.3163721]
[1765266865245,3.26203174,133.14,133.11,0.0563721]
[1765266867541,3.26203174,133.14,133.11,3.3163721]
[1765266867747,0.05203174,133.14,133.11,3.3163721]
[1765266868451,0.05203174,133.14,133.11,10.0780721]
[1765266868652,0.05203174,133.14,133.12,3.26]
[1765266870145,0.05203174,133.14,133.12,10.0212]
[1765266870344,0.05203174,133.14,133.13,3.26]
[1765266873344,3.21,133.19,133.14,6.7602]
[1765266873651,3.21,133.19,133.15,3.26]
[1765266874457,3.25820478,133.18,133.16,0.04918105]
[1765266881961,3.25820478,133.18,133.16,3.30918105]
[1765266882654,3.25820478,133.18,133.16,0.04918105]
[1765266884457,3.25820478,133.18,133.16,3.30918105]
[1765266887663,3.25820478,133.18,133.16,10.06858105]
[1765266891457,0.04820478,133.18,133.17,3.38]
[1765266891862,0.04820478,133.18,133.16,6.80858105]
[1765266891863,3.37820478,133.18,133.16,6.80858105]
[1765266892470,3.37820478,133.18,133.16,10.18858105]
[1765266897376,3.37820478,133.18,133.16,3.42918105]
[1765266897572,3.37820478,133.18,133.16,0.04918105]
[1765266898273,3.37820478,133.18,133.16,3.42918105]
[1765266907290,3.37820478,133.18,133.16,0.04918105]
[1765266914890,2.02067464,133.17,133.16,0.04918105]
[1765266915094,3.22,133.16,133.11,6.7619]
[1765266915295,3.22,133.16,133.11,9.8419]
[1765266915990,3.22,133.14,133.12,0.05368421]
[1765266919001,3.22,133.14,133.12,3.31368421]
[1765266919296,0.05591224,133.15,133.13,3.26]
[1765266920284,3.24591224,133.15,133.13,3.26]
[1765266920592,0.05591224,133.15,133.13,3.26]
[1765266921500,0.05591224,133.15,133.14,3.26]
[1765266925201,5.21067464,133.19,133.16,3.26]
[1765266926191,3.24533029,133.19,133.17,3.26]
[1765266926693,0.05533029,133.19,133.17,3.26]
[1765266927586,0.05533029,133.19,133.17,10.0189]
[1765266927993,0.05533029,133.19,133.18,3.26]
[1765266930899,5.26600493,133.19,133.16,0.05593081]
[1765266931100,3.19,133.18,133.16,3.31593081]
[1765266935798,0.05533029,133.19,133.16,3.31593081]
[1765266935997,3.24533029,133.19,133.16,3.31593081]
[1765266937909,0.05533029,133.19,133.16,3.31593081]
[1765266942306,0.05533029,133.19,133.18,3.26]
[1765266944116,3.24533029,133.19,133.17,3.26]
[1765266944315,3.24533029,133.19,133.16,3.31593081]
[1765266948616,0.05533029,133.19,133.17,3.14]
[1765266951521,3.17533029,133.19,133.16,3.19593081]
[1765266954013,3.17533029,133.19,133.16,0.05593081]
[1765266954723,3.12,133.17,133.16,0.05593081]
[1765266958129,5.14067464,133.18,133.16,3.19593081]
[1765266958620,5.14067464,133.18,133.16,0.05593081]
[1765266958928,3.12,133.17,133.16,0.05593081]
[1765266971436,3.25,133.14,133.1,3.39]
[1765266971645,3.25,133.14,133.08,3.39]
[1765266971829,3.25,133.12,133.08,3.39]
[1765266972434,10.0117,133.12,133.08,3.39]
[1765266972641,3.29997365,133.11,133.09,3.43880951]
[1765266975439,3.29997365,133.11,133.09,0.04880951]
[1765266976339,13.22074804,133.11,133.09,0.04880951]
[1765266976546,3.25,133.1,133.04,3.39]
[1765266977346,3.25,133.09,133.04,3.39]
[1765266977640,3.30309451,133.08,133.06,3.39]
[1765266977843,0.05309451,133.08,133.06,3.39]
[1765266978946,0.05309451,133.08,133.07,3.11]
[1765266992656,0.05309451,133.08,133.07,65.11]
[1765266994555,0.05309451,133.08,133.07,3.11]
[1765266994760,3.30309451,133.08,133.06,9.8743]
[1765266995060,3.30309451,133.08,133.06,3.11]
[1765267003166,0.05309451,133.08,133.06,3.11]
[1765267006575,10.0109,133.14,133.07,3.11]
[1765267007372,10.0112,133.13,133.08,3.11]
[1765267007575,0.05532955,133.12,133.1,3.11]
[1765267021694,0.05532955,133.12,133.11,3.21]
[1765267022775,73.8399,133.16,133.12,3.21]
[1765267023181,3.2,133.15,133.12,3.21]
[1765267023784,3.25578208,133.15,133.12,3.25905248]
[1765267024188,6.41425647,133.15,133.12,0.04905248]
[1765267024390,3.2,133.14,133.12,0.04905248]
[1765267025492,3.2,133.13,133.12,0.04905248]
[1765267030790,3.16,133.11,133.08,3.32]
[1765267030998,8.31772828,133.14,133.08,3.32]
[1765267031182,9.9208,133.14,133.08,10.0835]
[1765267031381,3.16,133.13,133.09,3.32]
[1765267031591,3.16,133.13,133.08,6.7635]
[1765267031592,3.21390177,133.12,133.1,3.37278436]
[1765267032398,0.05390177,133.12,133.1,3.37278436]
[1765267038998,3.33390177,133.12,133.1,3.37278436]
[1765267044203,0.05390177,133.12,133.1,3.37278436]
[1765267044599,0.00390177,133.12,133.11,5.38230549]
[1765267044801,0.00390177,133.12,133.11,3.36]
[1765267079334,3.12390177,133.12,133.11,3.36]
[1765267080429,0.00390177,133.12,133.11,3.36]
[1765267082737,3.22390177,133.12,133.1,3.23278436]
[1765267083224,0.00390177,133.12,133.1,3.23278436]
[1765267083429,3.22390177,133.12,133.1,3.23278436]
[1765267084033,3.22,133.11,133.09,3.18]
[1765267084337,3.22,133.1,133.08,3.18]
[1765267085124,3.26823777,133.1,133.08,3.23132789]
[1765267088542,0.04823777,133.1,133.08,3.23132789]
[1765267095438,3.26823777,133.1,133.08,3.23132789]
[1765267097141,0.04823777,133.1,133.08,3.23132789]
[1765267109466,3.18823777,133.1,133.08,3.23132789]
[1765267119469,0.04823777,133.1,133.08,3.23132789]
[1765267120272,0.04823777,133.1,133.08,0.05132789]
[1765267120273,3.18823777,133.1,133.08,0.05132789]
[1765267120571,3.18823777,133.1,133.08,3.13132789]
[1765267121475,0.04823777,133.1,133.08,3.13132789]
[1765267123562,0.04823777,133.1,133.08,65.13132789]
[1765267123771,0.04823777,133.1,133.09,3.08]
[1765267145888,219.12153302,133.14,133.09,6.7629]
[1765267146092,219.12153302,133.14,133.1,3.3]
[1765267146287,212.36083302,133.14,133.1,3.3]
[1765267146894,0.05723173,133.13,133.12,3.16]
[1765267193810,0.05723173,133.13,133.12,67.02]
[1765267199620,3.15,133.18,133.14,3.36]
[1765267199820,3.15,133.2,133.16,3.36]
[1765267200715,3.15,133.2,133.17,3.40804812]
[1765267203721,3.15,133.17,133.13,7.09926231]
[1765267203922,3.15,133.17,133.05,3.36]
[1765267203923,105.182,133.12,133.05,3.36]
[1765267205021,5.39752865,133.11,133.05,3.36]
[1765267205223,0.05219801,133.09,133.08,3.36]
[1765267210633,12.15071911,133.13,133.08,3.36]
[1765267210834,105.1543,133.16,133.08,3.36]
[1765267210835,63.88,133.15,133.08,3.36]
[1765267211237,6.7609,133.14,133.08,3.36]
[1765267211433,169.0404,133.15,133.08,3.36]
[1765267211737,6.7614,133.13,133.1,3.14478376]
[1765267212430,6.7618,133.12,133.1,0.05478376]
[1765267213339,6.7618,133.12,133.1,3.14478376]
[1765267214436,6.7608,133.14,133.1,3.14478376]
[1765267215750,6.7598,133.16,133.1,3.14478376]
[1765267217442,6.7598,133.16,133.11,3.09]
[1765267218748,6.7598,133.16,133.13,3.33]
[1765267218947,6.7598,133.16,133.13,3.38738402]
[1765267219150,6.7603,133.15,133.13,0.05738402]
[1765267220445,6.7603,133.15,133.13,3.38738402]
[1765267222148,70.6394,133.17,133.13,3.38738402]
[1765267226052,6.7597,133.16,133.13,0.05738402]
[1765267229455,6.7602,133.15,133.13,0.05738402]
[1765267231961,6.7594,133.17,133.13,3.38738402]
[1765267233760,110.55649962,133.17,133.13,0.05738402]
[1765267234151,110.5565037,133.17,133.13,0.05738402]
[1765267234554,113.7159516,133.17,133.13,0.05738402]
[1765267235057,6.7603,133.15,133.13,0.05738402]
[1765267235358,70.6203,133.15,133.13,0.05738402]
[1765267236561,63.86,133.15,133.13,3.38738402]
[1765267236763,70.6194,133.17,133.13,3.38738402]
[1765267243560,6.7597,133.16,133.13,0.05738402]
[1765267246857,6.7597,133.16,133.13,3.38738402]
[1765267247767,6.7597,133.16,133.13,0.05738402]
[1765267250169,6.7597,133.16,133.13,3.13738402]
[1765267253567,63.86,133.17,133.13,3.13738402]
[1765267254262,63.86,133.17,133.14,3.08]
[1765267254757,70.6192,133.17,133.14,3.08]
[1765267255258,70.6192,133.17,133.13,3.13738402]
[1765267255462,6.7596,133.16,133.13,0.05738402]
[1765267255771,63.86,133.17,133.13,0.05738402]
[1765267255971,8.60701184,133.16,133.13,0.05738402]
[1765267256163,3.1594479,133.16,133.13,0.05738402]
[1765267256564,6.7601,133.15,133.13,0.05738402]
[1765267258974,72.4707406,133.14,133.13,0.05738402]
[1765267261080,76.32555774,133.14,133.13,0.05738402]
[1765267262192,79.48500564,133.14,133.13,0.05738402]
[1765267262589,105.1817,133.12,133.06,62.0]
[1765267262787,72.4707406,133.11,133.05,3.08]
[1765267262993,5.4512927,133.1,133.05,3.08]
[1765267263294,63.86,133.11,133.05,3.08]
[1765267263495,6.7617,133.12,133.05,3.08]
[1765267263788,70.90879004,133.14,133.08,3.08]
[1765267263789,0.05260221,133.1,133.08,3.08]
[1765267263990,0.05260221,133.1,133.08,3.13148269]
[1765267265090,0.05260221,133.1,133.09,3.08]
[1765267265694,0.05260221,133.1,133.09,65.08]
[1765267267994,63.88,133.14,133.1,3.08]
[1765267268896,63.88,133.14,133.11,3.18752448]
[1765267270190,6.7602,133.15,133.11,3.18752448]
[1765267270383,5.43942178,133.14,133.11,3.18752448]
[1765267270587,6.7602,133.15,133.11,3.18752448]
[1765267270792,5.43929694,133.14,133.11,3.18752448]
[1765267270990,6.7602,133.15,133.11,3.18752448]
[1765267271192,5.4392976,133.14,133.11,3.18752448]
[1765267271494,6.7602,133.15,133.11,3.18752448]
[1765267271796,5.43927242,133.14,133.11,3.18752448]
[1765267271998,16.93829666,133.17,133.11,3.18752448]
[1765267272185,5.43918799,133.16,133.11,3.18752448]
[1765267272386,5.43918799,133.15,133.12,3.13]
[1765267272586,7.01954876,133.18,133.12,3.18211442]
[1765267272784,5.43305985,133.17,133.12,3.18211442]
[1765267272997,5.43305985,133.16,133.12,3.18211442]
[1765267273291,7.01954876,133.18,133.12,3.18211442]
[1765267273292,5.43305985,133.15,133.12,3.18211442]
[1765267273498,7.01954876,133.18,133.13,3.13]
[1765267273703,5.43274129,133.17,133.13,3.13]
[1765267273901,16.93739666,133.19,133.12,6.81351442]
[1765267273902,5.43274129,133.16,133.14,3.1794885]
[1765267274091,16.93739666,133.19,133.14,3.1794885]
[1765267274398,5.4327912,133.18,133.14,3.1794885]
[1765267274701,5.4327912,133.17,133.14,3.1794885]
[1765267274997,5.4327912,133.16,133.14,3.1794885]
[1765267275201,2.0209163,133.18,133.14,3.1794885]
[1765267275500,5.43219917,133.17,133.14,3.1794885]
[1765267275799,2.0209163,133.18,133.14,3.1794885]
[1765267276000,5.43198989,133.17,133.14,3.1794885]
[1765267276196,8.7796163,133.18,133.14,3.1794885]
[1765267276404,5.43148835,133.17,133.14,0.0494885]
[1765267276596,2.0209163,133.18,133.14,0.0494885]
[1765267276795,2.0209163,133.16,133.14,0.0494885]
[1765267277603,2.0209163,133.16,133.14,3.1794885]
[1765267279403,6.7592,133.17,133.14,3.1794885]
[1765267279703,2.0209163,133.18,133.14,3.1794885]
[1765267279903,5.39093537,133.17,133.14,3.1794885]
[1765267280106,2.0209163,133.18,133.14,3.1794885]
[1765267280306,5.39082104,133.17,133.14,3.1794885]
[1765267280501,8.7796163,133.18,133.14,3.1794885]
[1765267280802,5.39060796,133.17,133.14,3.1794885]
[1765267281004,8.7796163,133.18,133.14,3.1794885]
[1765267281305,5.39060796,133.17,133.14,3.1794885]
[1765267281505,8.7796163,133.18,133.14,3.1794885]
[1765267281809,5.39030007,133.17,133.14,3.1794885]
[1765267282006,8.7796163,133.18,133.14,3.1794885]
[1765267282207,5.39030007,133.17,133.14,3.1794885]
[1765267282408,8.7796163,133.18,133.14,3.1794885]
[1765267282608,5.39000615,133.17,133.14,3.1794885]
[1765267282808,8.7796163,133.18,133.14,3.1794885]
[1765267283008,5.37310202,133.17,133.14,3.1794885]
[1765267283306,8.7796163,133.18,133.14,3.1794885]
[1765267287612,6.7592,133.17,133.14,3.1794885]
[1765267297115,6.7597,133.16,133.14,3.1794885]
[1765267297322,2.0209163,133.15,133.09,3.2]
[1765267297523,2.0209163,133.13,133.09,3.2]
[1765267298421,0.05427031,133.12,133.1,3.25436769]
[1765267300713,0.05427031,133.12,133.1,5.27528399]
[1765267300915,0.05427031,133.12,133.11,3.2]
[1765267301822,6.7593,133.17,133.12,3.2]
[1765267302620,2.0209163,133.18,133.13,3.2]
[1765267302817,2.0209163,133.18,133.15,3.2]
[1765267303022,6.7573,133.21,133.15,3.2]
[1765267303221,6.7573,133.21,133.17,3.24889289]
[1765267308532,2.0209163,133.2,133.17,3.24889289]
[1765267312433,112.11814876,133.23,133.17,3.24889289]
[1765267312434,8.7771163,133.23,133.17,3.24889289]
[1765267313324,8.7771163,133.23,133.18,3.31]
[1765267314034,2.0209163,133.23,133.18,3.31]
[1765267314634,2.0209163,133.23,133.19,3.31]
[1765267314934,2.0209163,133.23,133.2,3.36309995]
[1765267315336,8.7771163,133.23,133.2,3.36309995]
[1765267317739,6.7567,133.22,133.2,0.05309995]
[1765267318635,2.0209163,133.23,133.2,0.05309995]
[1765267318842,6.7558,133.24,133.2,3.36309995]
[1765267320336,2.0209163,133.25,133.2,3.36309995]
[1765267320539,70.6148,133.26,133.2,3.36309995]
[1765267320540,65.8809163,133.26,133.2,3.36309995]
[1765267320736,2.0209163,133.26,133.2,3.36309995]
[1765267320933,8.7755163,133.26,133.2,10.12049995]
[1765267321241,8.7755163,133.26,133.21,3.31]
[1765267321940,2.0209163,133.26,133.21,3.31]
[1765267322131,2.0209163,133.22,133.2,0.05309995]
[1765267322532,8.7776163,133.22,133.2,0.05309995]
[1765267327444,6.758,133.19,133.15,3.31]
[1765267327639,8.7789163,133.19,133.15,3.31]
[1765267327940,8.7789163,133.19,133.14,3.31]
[1765267328444,0.05309995,133.18,133.15,3.39292766]
[1765267346465,0.05309995,133.18,133.15,10.15282766]
[1765267346666,0.05309995,133.18,133.16,3.19]
[1765267352173,105.0817,133.25,133.17,3.19]
[1765267352675,6.7559,133.24,133.18,3.19]
[1765267353069,6.7559,133.24,133.21,3.19]
[1765267353666,6.7562,133.23,133.21,3.19]
[1765267353862,6.7562,133.23,133.21,3.24331646]
[1765267357176,6.7546,133.25,133.21,3.24331646]
[1765267358463,105.0737,133.26,133.21,3.24331646]
[1765267358673,6.755,133.24,133.21,3.24331646]
[1765267361076,6.7541,133.26,133.21,3.24331646]
[1765267362074,70.5931,133.28,133.21,3.24331646]
[1765267362781,6.7535,133.27,133.22,3.19]
[1765267362972,6.7535,133.27,133.24,3.19]
[1765267364382,6.7526,133.29,133.24,3.19]
[1765267365182,6.7526,133.29,133.25,3.19]
[1765267365376,6.7526,133.29,133.27,3.19]
[1765267365573,6.7516,133.31,133.27,3.19]
[1765267366084,6.7519,133.3,133.27,3.19]
[1765267366278,3.15735955,133.3,133.26,0.05590582]
[1765267367681,6.7529,133.28,133.26,0.05590582]
[1765267369190,6.7521,133.3,133.26,3.22590582]
[1765267380500,3.15735955,133.3,133.26,0.05590582]
[1765267381184,3.15735955,133.32,133.26,3.22590582]
[1765267382394,9.90845955,133.32,133.26,9.97950582]
[1765267382596,9.90845955,133.32,133.27,3.17]
[1765267383095,6.7511,133.32,133.27,3.17]
[1765267383282,6.7511,133.32,133.27,9.923]
[1765267383489,6.7511,133.32,133.28,3.23]